bitfinex/quotes_SOLUSD_20251125
["timestamp","ask_amount","ask_price","bid_price","bid_amount"]
[1764079261083,8.80994492,135.66,135.64,29.45971098]
[1764079261297,9.52994492,135.66,135.64,91.75971098]
[1764079261614,8.80994492,135.67,135.64,69.6724565]
[1764079261800,9.52994492,135.67,135.64,65.95611323]
[1764079262394,0.72,135.66,135.64,62.3]
[1764079262599,0.72,135.66,135.64,65.95611323]
[1764079262778,0.72,135.66,135.64,73.32826143]
[1764079263395,8.80994492,135.67,135.65,3.65611323]
[1764079263714,9.52994492,135.67,135.64,73.32826143]
[1764079264007,9.52994492,135.67,135.64,69.6721482]
[1764079264198,9.52994492,135.67,135.64,74.01826143]
[1764079264398,9.52994492,135.67,135.64,73.32826143]
[1764079264595,12.06994492,135.69,135.66,3.65611323]
[1764079264904,12.78994492,135.69,135.66,11.0270875]
[1764079266188,8.80994492,135.67,135.65,11.7178728]
[1764079266388,8.80994492,135.67,135.65,4.34611323]
[1764079267512,8.80994492,135.67,135.65,11.71789896]
[1764079268213,8.80994492,135.67,135.65,11.02789896]
[1764079268405,8.80994492,135.67,135.65,11.71789896]
[1764079268913,8.80994492,135.67,135.65,11.02789896]
[1764079269087,8.80994492,135.67,135.65,11.71789896]
[1764079269885,8.80994492,135.68,135.65,7.37178573]
[1764079270081,0.72,135.67,135.61,18.43431721]
[1764079270389,8.80994492,135.65,135.64,3.65611323]
[1764079271709,8.80994492,135.65,135.63,3.65611323]
[1764079271891,0.72,135.64,135.61,7.3738209]
[1764079272088,0.72,135.64,135.61,11.71993413]
[1764079272294,9.52994492,135.65,135.62,3.65611323]
[1764079272712,0.72,135.64,135.61,26.49903954]
[1764079272887,0.72,135.64,135.62,3.65611323]
[1764079274323,0.72,135.64,135.62,11.02948356]
[1764079274505,12.06994492,135.66,135.63,3.65611323]
[1764079274704,12.06994492,135.66,135.62,10.40474135]
[1764079274904,0.72,135.65,135.62,10.40474135]
[1764079275417,3.06137102,135.65,135.6,7.37463126]
[1764079275626,8.80994492,135.63,135.6,7.37463126]
[1764079276121,8.80994492,135.61,135.6,7.37463126]
[1764079277941,8.80994492,135.61,135.6,9.71600228]
[1764079278419,3.26,135.63,135.6,9.71600228]
[1764079278727,3.98,135.63,135.6,10.40600228]
[1764079279328,3.98,135.63,135.6,9.71600228]
[1764079279822,3.98,135.63,135.6,10.40600228]
[1764079280118,3.98,135.63,135.6,9.71600228]
[1764079280313,3.98,135.63,135.6,7.37463126]
[1764079280520,3.98,135.63,135.6,9.71600228]
[1764079280719,8.80994492,135.61,135.6,9.71600228]
[1764079281021,8.80994492,135.61,135.6,7.37463126]
[1764079282025,8.80994492,135.62,135.6,10.40600228]
[1764079282202,8.80994492,135.62,135.6,9.71600228]
[1764079282401,9.52994492,135.62,135.6,9.71600228]
[1764079282827,8.80994492,135.66,135.61,3.03137102]
[1764079283127,8.80994492,135.66,135.64,2.34137102]
[1764079283303,8.80994492,135.66,135.64,3.03137102]
[1764079284333,8.80994492,135.66,135.65,7.37191301]
[1764079284629,0.69,135.65,135.61,7.37408745]
[1764079284832,8.80994492,135.63,135.61,7.37408745]
[1764079285228,9.49994492,135.63,135.61,7.37408745]
[1764079286716,8.80994492,135.63,135.61,7.37408745]
[1764079287027,8.80994492,135.65,135.62,3.03137102]
[1764079287206,12.75994492,135.65,135.62,3.03137102]
[1764079287414,12.75994492,135.65,135.62,2.34137102]
[1764079287728,12.75994492,135.65,135.62,3.03137102]
[1764079287951,8.80994492,135.63,135.61,25.80930609]
[1764079288105,8.80994492,135.63,135.61,28.15067711]
[1764079288300,8.80994492,135.64,135.62,3.03137102]
[1764079288701,8.80994492,135.64,135.63,7.37300007]
[1764079291245,9.49994492,135.64,135.62,7.37327439]
[1764079291833,8.80994492,135.64,135.63,0.69]
[1764079292630,8.80994492,135.64,135.62,28.83850472]
[1764079292811,9.49994492,135.63,135.62,7.37327439]
[1764079293306,8.80994492,135.63,135.62,7.37327439]
[1764079293624,8.80994492,135.63,135.62,9.71464541]
[1764079294620,8.80994492,135.63,135.62,7.37327439]
[1764079294934,8.80994492,135.62,135.61,64.64137102]
[1764079295134,0.69,135.63,135.61,7.37381149]
[1764079295317,0.69,135.62,135.6,64.64137102]
[1764079295639,0.69,135.62,135.59,3.03137102]
[1764079296224,0.69,135.62,135.59,2.34137102]
[1764079296533,0.69,135.62,135.59,3.03137102]
[1764079297030,19.21383275,135.64,135.6,0.69]
[1764079297232,0.69,135.63,135.6,3.03137102]
[1764079297926,8.80994492,135.64,135.6,3.03137102]
[1764079298236,9.49994492,135.64,135.6,3.03137102]
[1764079298534,12.75994492,135.65,135.61,3.03137102]
[1764079298715,15.10131594,135.65,135.61,3.03137102]
[1764079298915,8.80994492,135.63,135.61,10.40491489]
[1764079299125,8.80994492,135.63,135.61,9.71491489]
[1764079299954,8.80994492,135.63,135.62,2.34137102]
[1764079300625,8.80994492,135.63,135.62,3.03137102]
[1764079301022,3.26,135.65,135.63,7.37300007]
[1764079301239,3.26,135.65,135.63,10.40437109]
[1764079301725,3.26,135.65,135.64,0.69]
[1764079301917,8.80994492,135.68,135.64,3.03137102]
[1764079302122,8.80994492,135.68,135.66,2.34137102]
[1764079302318,2.34137102,135.68,135.63,9.71437109]
[1764079302522,8.80994492,135.66,135.63,7.37300007]
[1764079303025,8.80994492,135.64,135.63,7.37300007]
[1764079303227,8.80994492,135.64,135.63,9.71437109]
[1764079303963,8.80994492,135.64,135.63,7.37300007]
[1764079304248,8.80994492,135.64,135.63,9.71437109]
[1764079304551,8.80994492,135.64,135.63,7.37300007]
[1764079304735,0.69,135.65,135.63,28.14687127]
[1764079304736,8.80994492,135.65,135.63,28.14687127]
[1764079305355,9.49994492,135.65,135.63,28.14687127]
[1764079305552,3.26,135.67,135.64,3.03137102]
[1764079305859,12.06994492,135.67,135.65,2.34137102]
[1764079306758,12.06994492,135.67,135.66,7.3713696]
[1764079307657,12.06994492,135.67,135.66,9.71274062]
[1764079307856,12.06994492,135.67,135.66,7.3713696]
[1764079311131,8.80994492,135.67,135.65,2.34137102]
[1764079312036,0.69,135.67,135.64,90.44476479]
[1764079312236,0.69,135.67,135.65,2.34137102]
[1764079312449,0.69,135.67,135.64,72.70362354]
[1764079313043,11.15131594,135.69,135.64,72.70362354]
[1764079313247,0.66,135.68,135.64,72.70362354]
[1764079313559,0.66,135.68,135.64,91.13476479]
[1764079313761,0.66,135.68,135.65,2.34137102]
[1764079314464,8.80994492,135.69,135.65,3.02137102]
[1764079314771,0.66,135.68,135.66,9.71274062]
[1764079315141,8.80994492,135.69,135.67,0.68]
[1764079315463,9.46994492,135.69,135.66,10.39274062]
[1764079316266,9.46994492,135.69,135.66,28.82116462]
[1764079316945,9.46994492,135.69,135.66,28.14116462]
[1764079317153,9.46994492,135.69,135.66,9.71274062]
[1764079318177,9.46994492,135.69,135.66,28.14116462]
[1764079318545,9.46994492,135.69,135.66,28.80116462]
[1764079320764,8.80994492,135.69,135.67,2.34137102]
[1764079320950,8.80994492,135.69,135.67,3.00137102]
[1764079321145,3.26,135.7,135.68,0.66]
[1764079321350,0.69,135.73,135.69,2.34137102]
[1764079321648,2.34137102,135.7,135.66,69.6713696]
[1764079321856,8.80994492,135.68,135.66,7.3713696]
[1764079322166,8.80994492,135.68,135.65,25.80169553]
[1764079322335,8.80994492,135.68,135.65,28.80306655]
[1764079322539,3.26,135.69,135.67,2.34137102]
[1764079322736,3.26,135.72,135.68,2.34137102]
[1764079322967,8.80994492,135.71,135.68,2.34137102]
[1764079323147,8.80994492,135.71,135.68,3.00137102]
[1764079323561,8.80994492,135.71,135.68,2.34137102]
[1764079323761,8.80994492,135.71,135.68,3.00137102]
[1764079323964,8.80994492,135.71,135.69,3.00137102]
[1764079324196,8.80994492,135.71,135.7,7.36919675]
[1764079324351,3.26,135.72,135.7,10.37056777]
[1764079324558,3.26,135.72,135.7,28.79355966]
[1764079325670,3.26,135.72,135.7,10.37056777]
[1764079325868,12.06994492,135.72,135.71,0.66]
[1764079326072,0.89,135.75,135.71,3.00137102]
[1764079326276,8.80994492,135.74,135.72,7.36811081]
[1764079326478,8.80994492,135.74,135.72,10.36948183]
[1764079326657,8.80994492,135.74,135.73,0.66]
[1764079326991,8.80994492,135.74,135.73,3.00137102]
[1764079327159,8.80994492,135.74,135.73,2.34137102]
[1764079327560,3.46,135.75,135.73,3.00137102]
[1764079327767,0.2,135.75,135.74,3.00137102]
[1764079328282,0.2,135.75,135.74,10.36839621]
[1764079329165,0.2,135.75,135.74,9.70839621]
[1764079329372,0.2,135.75,135.74,7.36702519]
[1764079329577,0.2,135.75,135.74,8.02702519]
[1764079329786,0.2,135.75,135.74,9.70839621]
[1764079332366,0.2,135.75,135.74,7.36702519]
[1764079332890,0.2,135.75,135.74,10.36839621]
[1764079333682,0.2,135.75,135.74,7.36702519]
[1764079333886,0.89,135.75,135.74,7.36702519]
[1764079334073,9.69994492,135.75,135.74,7.36702519]
[1764079334579,9.69994492,135.75,135.73,7.36756796]
[1764079335397,9.69994492,135.75,135.72,8.0280831]
[1764079335693,9.00994492,135.75,135.72,28.78973116]
[1764079335861,9.69994492,135.75,135.72,28.78973116]
[1764079336061,9.69994492,135.75,135.72,28.98142699]
[1764079336358,9.00994492,135.75,135.73,3.19306685]
[1764079336564,0.2,135.75,135.74,11.32283069]
[1764079336785,0.2,135.75,135.74,11.98283069]
[1764079339295,0.69,135.82,135.74,129.53551964]
[1764079339471,0.69,135.82,135.75,3.92]
[1764079339472,8.80994492,135.81,135.75,3.92]
[1764079339789,0.69,135.82,135.79,3.9558055]
[1764079340165,8.80994492,135.81,135.79,3.9558055]
[1764079340569,8.80994492,135.79,135.75,62.3]
[1764079340768,8.80994492,135.77,135.75,7.36608304]
[1764079341079,8.80994492,135.77,135.74,18.41756298]
[1764079341080,8.80994492,135.75,135.72,22.37554002]
[1764079341497,12.76575042,135.73,135.69,3.9558055]
[1764079341668,12.76575042,135.73,135.69,7.36973984]
[1764079341868,8.80994492,135.71,135.69,11.32554534]
[1764079342986,0.69,135.72,135.69,11.32554534]
[1764079343194,0.69,135.72,135.7,3.9558055]
[1764079343407,8.80994492,135.75,135.7,3.9558055]
[1764079343568,0.67,135.73,135.7,3.9558055]
[1764079343771,13.43575042,135.73,135.68,3.9558055]
[1764079344071,8.80994492,135.71,135.68,3.9558055]
[1764079344490,9.47994492,135.71,135.68,3.9558055]
[1764079345078,8.80994492,135.69,135.66,11.32687547]
[1764079345267,12.76575042,135.67,135.61,25.80930609]
[1764079345467,16.978864,135.7,135.58,29.53451168]
[1764079345468,12.76575042,135.65,135.58,29.53451168]
[1764079345672,12.76575042,135.65,135.61,3.9558055]
[1764079345874,9.47994492,135.65,135.61,3.9558055]
[1764079346074,8.80994492,135.63,135.61,3.9558055]
[1764079346708,8.80994492,135.63,135.61,11.32947522]
[1764079347076,8.80994492,135.63,135.6,7.37443721]
[1764079347278,8.80994492,135.63,135.6,12.03024271]
[1764079347672,8.80994492,135.63,135.61,3.9558055]
[1764079348188,8.80994492,135.61,135.59,11.33094417]
[1764079348378,8.80994492,135.61,135.55,0.7]
[1764079348585,8.80994492,135.59,135.57,3.9558055]
[1764079348790,8.80994492,135.59,135.56,7.37680731]
[1764079348990,0.67,135.59,135.56,11.33261281]
[1764079349177,0.67,135.59,135.57,3.9558055]
[1764079349372,0.67,135.59,135.56,7.37680731]
[1764079349608,9.47994492,135.61,135.57,3.9558055]
[1764079349782,9.47994492,135.61,135.59,3.9558055]
[1764079350579,9.47994492,135.61,135.59,9.46916593]
[1764079350890,0.67,135.61,135.59,16.84396521]
[1764079351208,8.80994492,135.62,135.6,9.46916593]
[1764079351389,9.47994492,135.62,135.59,7.37479928]
[1764079351577,0.67,135.62,135.59,7.37479928]
[1764079351778,0.67,135.62,135.6,9.46916593]
[1764079352214,0.67,135.62,135.56,3.26]
[1764079352215,10.13916593,135.62,135.56,3.26]
[1764079352387,8.80994492,135.61,135.57,9.46916593]
[1764079352585,9.47994492,135.61,135.58,9.46916593]
[1764079352794,8.80994492,135.61,135.59,9.46916593]
[1764079352991,8.80994492,135.61,135.59,16.8441693]
[1764079353193,9.47994492,135.61,135.59,16.8441693]
[1764079353405,8.80994492,135.63,135.6,9.46916593]
[1764079353586,8.80994492,135.63,135.62,9.46916593]
[1764079353781,3.26,135.66,135.62,9.46916593]
[1764079353984,3.26,135.66,135.65,9.46916593]
[1764079354221,9.46916593,135.7,135.65,9.46916593]
[1764079354391,8.80994492,135.68,135.67,9.46916593]
[1764079354702,8.80994492,135.68,135.66,9.46916593]
[1764079354905,9.47994492,135.69,135.66,9.46916593]
[1764079355103,9.47994492,135.69,135.66,16.84036713]
[1764079355403,0.67,135.68,135.66,16.84036713]
[1764079356996,8.80994492,135.69,135.67,9.46916593]
[1764079357309,8.80994492,135.69,135.68,9.46916593]
[1764079359104,8.80994492,135.69,135.68,16.83944894]
[1764079359684,8.80994492,135.7,135.67,9.46916593]
[1764079359889,8.80994492,135.7,135.66,9.46916593]
[1764079360108,0.67,135.69,135.66,9.46916593]
[1764079360306,0.67,135.69,135.67,9.46916593]
[1764079360511,8.80994492,135.71,135.68,9.46916593]
[1764079360695,12.06994492,135.71,135.68,9.46916593]
[1764079361013,0.67,135.7,135.68,9.46916593]
[1764079361410,8.80994492,135.72,135.69,16.83890577]
[1764079361614,0.67,135.71,135.69,16.83890577]
[1764079362302,8.80994492,135.72,135.7,9.46916593]
[1764079362510,8.80994492,135.72,135.71,9.46916593]
[1764079362819,8.80994492,135.72,135.67,0.7]
[1764079363115,0.67,135.71,135.67,9.46916593]
[1764079363421,0.67,135.71,135.68,9.46916593]
[1764079363907,0.67,135.71,135.68,16.83939931]
[1764079364321,0.67,135.71,135.68,9.46916593]
[1764079364623,0.67,135.71,135.67,7.3707885]
[1764079364812,0.67,135.71,135.67,16.83995443]
[1764079365724,0.67,135.71,135.68,9.46916593]
[1764079366316,0.67,135.71,135.67,9.46916593]
[1764079366754,8.03869598,135.71,135.67,9.46916593]
[1764079367022,3.93,135.7,135.67,9.46916593]
[1764079368094,8.80994492,135.68,135.67,9.46916593]
[1764079368290,8.80994492,135.68,135.66,7.3713696]
[1764079368291,8.80994492,135.68,135.65,9.46916593]
[1764079368537,0.67,135.67,135.65,16.84091903]
[1764079368988,0.67,135.67,135.65,9.46916593]
[1764079369195,9.47994492,135.69,135.66,9.46916593]
[1764079369426,9.47994492,135.69,135.67,9.46916593]
[1764079369928,9.47994492,135.69,135.66,9.46916593]
[1764079370744,8.80994492,135.69,135.66,16.84032229]
[1764079371112,9.47994492,135.69,135.66,16.84032229]
[1764079372541,9.47994492,135.69,135.66,11.33244459]
[1764079373134,9.47994492,135.69,135.67,3.96128823]
[1764079374133,8.80994492,135.69,135.67,3.96128823]
[1764079374329,12.06994492,135.7,135.68,3.96128823]
[1764079374528,12.75994492,135.7,135.68,3.96128823]
[1764079375328,8.80994492,135.7,135.69,0.69]
[1764079375532,8.80994492,135.7,135.69,4.65128823]
[1764079376422,8.80994492,135.71,135.69,4.65128823]
[1764079376626,8.80994492,135.71,135.69,3.96128823]
[1764079376830,8.80994492,135.71,135.69,4.65128823]
[1764079377735,8.80994492,135.71,135.7,7.36919675]
[1764079379512,8.80994492,135.71,135.69,11.33090876]
[1764079379716,9.47994492,135.71,135.69,7.36962053]
[1764079380011,8.80994492,135.71,135.69,11.33090876]
[1764079380233,8.80994492,135.71,135.7,3.96128823]
[1764079380537,8.80994492,135.71,135.69,12.05090876]
[1764079380931,3.26,135.72,135.7,4.68128823]
[1764079381113,8.80994492,135.73,135.71,3.96128823]
[1764079381312,8.80994492,135.74,135.72,3.96128823]
[1764079381508,9.47994492,135.74,135.72,11.32896952]
[1764079382132,0.67,135.73,135.7,11.33030698]
[1764079382347,0.67,135.73,135.71,3.96128823]
[1764079383345,8.80994492,135.74,135.71,3.96128823]
[1764079383515,8.80994492,135.74,135.73,3.96128823]
[1764079383720,9.47994492,135.74,135.71,18.42033062]
[1764079383919,9.47994492,135.74,135.72,7.36774863]
[1764079384722,0.67,135.73,135.72,7.36774863]
[1764079385121,0.67,135.73,135.7,4.68128823]
[1764079385122,0.67,135.73,135.71,7.36855103]
[1764079385342,0.67,135.73,135.7,11.3302746]
[1764079385547,4.63128823,135.73,135.68,84.68648295]
[1764079385722,4.63128823,135.73,135.68,22.38648295]
[1764079385923,8.80994492,135.71,135.68,25.79493467]
[1764079386239,8.80994492,135.71,135.69,3.96128823]
[1764079386548,0.67,135.71,135.69,3.96128823]
[1764079387243,12.06994492,135.73,135.69,3.96128823]
[1764079387453,8.80994492,135.71,135.69,3.96128823]
[1764079387657,8.80994492,135.71,135.7,7.36919675]
[1764079388123,0.67,135.72,135.7,7.36919675]
[1764079388124,3.26,135.73,135.7,11.33048498]
[1764079388330,8.80994492,135.71,135.7,11.33048498]
[1764079388525,8.80994492,135.71,135.7,7.36919675]
[1764079388847,12.06994492,135.73,135.7,7.36919675]
[1764079389056,12.73994492,135.73,135.7,11.33048498]
[1764079389639,3.26,135.73,135.72,7.36811081]
[1764079389854,8.80994492,135.74,135.72,11.32939904]
[1764079390025,8.80994492,135.74,135.73,3.96128823]
[1764079390951,3.93,135.76,135.73,3.96128823]
[1764079391242,8.80994492,135.75,135.73,3.96128823]
[1764079391543,7.3626859,135.82,135.74,4.68128823]
[1764079391718,0.67,135.79,135.76,11.32689083]
[1764079393138,0.67,135.79,135.75,8.08629562]
[1764079393343,0.67,135.79,135.75,11.32758385]
[1764079393649,0.67,135.79,135.75,12.04758385]
[1764079394027,0.67,135.79,135.75,11.32758385]
[1764079394747,11.99562669,135.79,135.75,7.36629562]
[1764079395126,8.80994492,135.77,135.75,7.36629562]
[1764079395447,8.80994492,135.77,135.74,62.3]
[1764079395650,8.80994492,135.75,135.74,62.3]
[1764079395841,3.26,135.78,135.74,3.96128823]
[1764079395842,8.80994492,135.77,135.74,3.96128823]
[1764079396151,8.80994492,135.77,135.75,3.96128823]
[1764079396328,8.80994492,135.77,135.74,4.68128823]
[1764079396536,9.47994492,135.77,135.74,4.68128823]
[1764079397352,8.80994492,135.77,135.76,3.96128823]
[1764079397729,8.80994492,135.77,135.76,4.68128823]
[1764079398046,8.80994492,135.77,135.76,12.04722812]
[1764079398635,8.80994492,135.77,135.76,10.61753085]
[1764079398839,3.8504033,135.81,135.76,72.91753085]
[1764079399049,8.80994492,135.81,135.78,2.53159096]
[1764079399355,9.47994492,135.81,135.78,2.53159096]
[1764079400129,9.47994492,135.81,135.78,9.89632145]
[1764079400559,9.47994492,135.81,135.78,10.61632145]
[1764079400752,8.80994492,135.81,135.78,29.02845873]
[1764079400928,3.93,135.82,135.79,2.53159096]
[1764079401132,8.80994492,135.81,135.79,2.53159096]
[1764079401663,12.73994492,135.83,135.79,3.25159096]
[1764079402161,12.06994492,135.83,135.81,7.36322803]
[1764079402530,3.26,135.83,135.81,7.36322803]
[1764079402760,12.06994492,135.83,135.81,10.61481899]
[1764079402966,12.06994492,135.83,135.81,9.89481899]
[1764079404039,8.80994492,135.83,135.81,10.56481899]
[1764079404585,8.80994492,135.83,135.81,9.89481899]
[1764079404796,8.80994492,135.83,135.81,10.56481899]
[1764079406673,8.80994492,135.83,135.81,7.36322803]
[1764079406879,8.80994492,135.83,135.81,8.03322803]
[1764079407268,8.80994492,135.83,135.81,7.36322803]
[1764079407587,8.80994492,135.83,135.81,10.56481899]
[1764079407766,0.1,135.84,135.82,3.20159096]
[1764079408169,0.1,135.84,135.83,2.53159096]
[1764079408675,9.58994492,135.84,135.83,7.36214385]
[1764079409086,9.58994492,135.84,135.82,7.36262027]
[1764079409292,0.68,135.83,135.82,7.36262027]
[1764079409502,0.1,135.84,135.83,0.67]
[1764079409798,1e-08,135.84,135.83,6.46159096]
[1764079410097,0.2,135.87,135.86,16.308864]
[1764079410304,0.2,135.87,135.84,0.67]
[1764079410604,0.2,135.87,135.84,2.53159096]
[1764079410903,0.2,135.87,135.85,2.53159096]
[1764079412568,0.88,135.87,135.85,2.53159096]
[1764079412766,0.88,135.87,135.85,9.89214683]
[1764079413000,0.2,135.87,135.85,9.89214683]
[1764079413196,0.2,135.87,135.84,0.67]
[1764079413399,0.2,135.87,135.85,2.53159096]
[1764079414393,0.88,135.87,135.84,28.29712156]
[1764079414596,8.80994492,135.86,135.83,7.36214385]
[1764079414902,8.80994492,135.86,135.83,9.89373481]
[1764079414903,9.48994492,135.86,135.83,9.89373481]
[1764079415102,0.68,135.86,135.83,9.89373481]
[1764079415402,0.68,135.86,135.82,23.67133959]
[1764079415403,8.80994492,135.85,135.82,23.67133959]
[1764079415882,8.80994492,135.83,135.82,62.3]
[1764079416085,8.80994492,135.83,135.82,7.3626859]
[1764079416304,0.68,135.83,135.82,7.3626859]
[1764079416482,0.68,135.84,135.82,7.3626859]
[1764079416684,8.80994492,135.83,135.82,7.3626859]
[1764079416892,3.94,135.86,135.82,26.43940066]
[1764079417074,3.94,135.86,135.83,2.53159096]
[1764079417275,8.80994492,135.85,135.83,2.53159096]
[1764079418791,8.80994492,135.85,135.84,7.36160188]
[1764079419099,8.80994492,135.85,135.83,9.89357637]
[1764079419276,0.68,135.84,135.82,9.8940345]
[1764079419485,0.68,135.84,135.82,7.36244354]
[1764079419693,0.68,135.84,135.82,9.8940345]
[1764079420094,8.80994492,135.85,135.83,2.53159096]
[1764079420298,9.48994492,135.85,135.83,2.53159096]
[1764079420510,8.80994492,135.85,135.83,3.20159096]
[1764079420799,8.80994492,135.85,135.84,7.36160188]
[1764079420999,9.48994492,135.85,135.83,9.8935843]
[1764079421185,0.68,135.84,135.82,9.8941475]
[1764079421394,0.68,135.84,135.82,7.36255654]
[1764079421701,0.68,135.84,135.82,9.8941475]
[1764079421907,8.80994492,135.85,135.83,2.53159096]
[1764079422106,9.48994492,135.85,135.83,2.53159096]
[1764079423223,8.80994492,135.85,135.82,18.40671476]
[1764079423420,8.80994492,135.85,135.83,9.89351795]
[1764079423623,3.94,135.86,135.83,28.29887759]
[1764079424605,0.68,135.85,135.83,25.76728663]
[1764079425517,9.48994492,135.85,135.83,28.29887759]
[1764079427822,9.48994492,135.85,135.83,25.76728663]
[1764079428118,9.48994492,135.85,135.83,28.29887759]
[1764079429726,9.48994492,135.85,135.83,25.76728663]
[1764079429902,9.48994492,135.85,135.83,7.36192699]
[1764079429903,0.68,135.84,135.83,7.36192699]
[1764079430319,9.48994492,135.84,135.83,7.36192699]
[1764079430624,0.68,135.84,135.82,7.36267351]
[1764079431426,0.68,135.84,135.82,2.53159096]
[1764079431722,8.80994492,135.85,135.82,3.20159096]
[1764079431923,8.80994492,135.85,135.83,2.53159096]
[1764079432506,9.48994492,135.85,135.83,2.53159096]
[1764079432826,8.80994492,135.85,135.83,2.53159096]
[1764079433328,9.52994492,135.85,135.83,2.53159096]
[1764079433501,9.52994492,135.85,135.82,3.20159096]
[1764079434018,9.52994492,135.85,135.83,7.36196267]
[1764079434728,9.52994492,135.85,135.82,9.89405416]
[1764079434927,8.80994492,135.85,135.82,9.89405416]
[1764079435230,0.72,135.84,135.8,9.89502679]
[1764079435408,0.72,135.84,135.8,28.30445241]
[1764079435603,0.72,135.84,135.81,2.53159096]
[1764079436730,0.72,135.84,135.8,20.94101658]
[1764079437031,0.72,135.84,135.8,25.77319587]
[1764079437329,8.80994492,135.81,135.77,2.53159096]
[1764079437828,2.53159096,135.82,135.77,2.53159096]
[1764079437829,8.80994492,135.79,135.77,2.53159096]
[1764079438006,9.51994492,135.79,135.77,2.53159096]
[1764079438206,9.51994492,135.79,135.78,7.36485491]
[1764079439126,8.80994492,135.79,135.78,7.36485491]
[1764079440631,9.51994492,135.79,135.78,7.36485491]
[1764079441708,9.51994492,135.79,135.76,9.89734203]
[1764079441909,9.51994492,135.79,135.72,18.41937927]
[1764079441910,8.80994492,135.77,135.72,18.41937927]
[1764079442218,8.80994492,135.75,135.72,7.36800186]
[1764079442607,8.80994492,135.73,135.72,7.36800186]
[1764079442805,8.80994492,135.73,135.7,9.90057394]
[1764079443116,8.80994492,135.71,135.7,7.36898298]
[1764079443730,11.34153588,135.73,135.7,7.36898298]
[1764079444030,0.71,135.72,135.7,7.36898298]
[1764079444730,14.60153588,135.71,135.68,0.2]
[1764079445038,8.80994492,135.7,135.68,0.2]
[1764079445337,0.71,135.69,135.68,0.2]
[1764079445642,25.82880892,135.69,135.68,0.2]
[1764079447142,25.82880892,135.69,135.68,3.40159096]
[1764079447143,8.80994492,135.69,135.68,3.40159096]
[1764079447327,8.80994492,135.69,135.68,10.10187397]
[1764079449728,8.80994492,135.69,135.68,10.77187397]
[1764079450133,8.80994492,135.69,135.68,10.10187397]
[1764079450633,8.80994492,135.7,135.68,29.19758151]
[1764079450810,8.80994492,135.7,135.69,3.20159096]
[1764079451735,8.80994492,135.7,135.69,10.5713308]
[1764079451938,8.80994492,135.7,135.69,7.36973984]
[1764079452110,3.26,135.71,135.69,7.36973984]
[1764079452311,12.06994492,135.71,135.7,2.53159096]
[1764079452529,12.06994492,135.71,135.69,10.5713308]
[1764079452917,12.06994492,135.71,135.7,2.53159096]
[1764079453113,18.84045496,135.76,135.7,3.20159096]
[1764079453437,12.77994492,135.75,135.73,2.53159096]
[1764079453635,12.06994492,135.75,135.73,2.53159096]
[1764079453844,12.77994492,135.75,135.73,9.89899857]
[1764079454140,9.51994492,135.75,135.73,7.36740761]
[1764079454313,8.80994492,135.75,135.73,9.89899857]
[1764079454514,0.71,135.79,135.74,3.20159096]
[1764079454725,3.26,135.78,135.76,2.53159096]
[1764079454925,9.51994492,135.79,135.77,2.53159096]
[1764079455212,3.97,135.79,135.77,2.53159096]
[1764079455714,3.26,135.79,135.77,2.53159096]
[1764079456241,3.26,135.8,135.76,9.89753085]
[1764079456540,8.80994492,135.77,135.75,9.89806578]
[1764079457142,8.80994492,135.79,135.76,3.20159096]
[1764079457340,8.80994492,135.79,135.77,2.53159096]
[1764079458012,8.80994492,135.79,135.78,7.36485491]
[1764079459434,8.80994492,135.82,135.78,8.03485491]
[1764079459610,8.80994492,135.8,135.78,7.36485491]
[1764079459938,8.80994492,135.8,135.79,4.62485621]
[1764079460235,8.80994492,135.81,135.79,4.62485621]
[1764079460415,8.80994492,135.81,135.78,29.7318484]
[1764079460610,8.80994492,135.81,135.78,30.4018484]
[1764079461541,8.80994492,135.81,135.78,26.44699219]
[1764079461717,8.80994492,135.81,135.78,30.4018484]
[1764079462044,9.51994492,135.81,135.78,26.44699219]
[1764079462219,9.51994492,135.81,135.78,30.4018484]
[1764079462421,8.80994492,135.81,135.79,3.95485621]
[1764079462623,8.80994492,135.81,135.79,4.62485621]
[1764079463050,3.26,135.82,135.79,4.62485621]
[1764079463230,9.47994492,135.81,135.78,29.7318484]
[1764079463430,8.80994492,135.81,135.78,30.3918484]
[1764079463628,3.93,135.82,135.79,4.61485621]
[1764079463629,3.26,135.82,135.79,4.61485621]
[1764079464136,3.26,135.82,135.8,7.36377025]
[1764079465044,8.80994492,135.83,135.8,30.38805208]
[1764079465224,12.06994492,135.83,135.8,30.38805208]
[1764079465425,12.06994492,135.83,135.81,3.95485621]